Workbook

Sheet Семиборье (2000-2001) (hidden)
A1: =#REF! -> 
A2: =#REF! -> 
A4: =#REF! -> 
B6: =#REF! ->  | AD6: =#REF! -> 
A7: Место | B7: Фамилия Имя | C7: Д.р. | D7: Команда, организация | E7: №№ | F7: 60 очки | G7: сумма | H7: место | I7: Длина очки | J7: сумма | K7: место | L7: Ядро очки | M7: сумма | N7: место | O7: Высота очки | P7: сумма | Q7: место | R7: 60м с/б очки | S7: сумма | T7: место | U7: Шест очки | V7: сумма | W7: место | X7: 1000м очки | AB7: Сумма | AC7: Место | AD7: Разряд | AE7: Очки | AF7: Тренер
A8: 1 | B8: =VLOOKUP($E8,#REF!,2,FALSE) ->  | C8: =VLOOKUP($E8,#REF!,3,FALSE) ->  | D8: =VLOOKUP($E8,#REF!,5,FALSE) ->  | E8: 58 | F8: 7.95 | G8: =F9 -> 574 | H8: =RANK(G8,G$8:G$17) -> 3 | I8: 6.15 | J8: =G8+I9 -> 1193 | K8: =RANK(J8,J$8:J$17) -> 2 | L8: 13.11 | M8: =J8+L9 -> 1867 | N8: =RANK(M8,M$8:M$17) -> 1 | O8: 1.81 | P8: =M8+O9 -> 2503 | Q8: =RANK(P8,P$8:P$17) -> 1 | R8: 9.10 | S8: =P8+R9 -> 3227 | T8: =RANK(S8,S$8:S$17) -> 1 | U8: 3.60 | V8: =S8+U9 -> 3736 | W8: =RANK(V8,V$8:V$17) -> 1 | X8: 2,57,8 | Y8: =MID(X8,1,1) -> 2 | Z8: =MID(X8,3,5) -> 57,8 | AA8: =Y8*60+Z8 -> 1900-06-25T19:12:00 | AB8: =SUM(F9:X9) -> 4422 | AC8: =RANK(AB8,AB$18:AB$969) ->  | AD8: 1 | AE8: лич | AF8: =VLOOKUP($E8,#REF!,7,FALSE) -> 
D9: =VLOOKUP($E8,#REF!,6,FALSE) ->  | F9: =INT(58.015*(11.5-F8)^1.81) -> 574 | I9: =INT(0.14354*(I8*100-220)^1.4) -> 619 | L9: =INT(51.39*(L8-1.5)^1.05) -> 674 | O9: =INT(0.8465*(O8*100-75)^1.42) -> 636 | R9: =INT(20.5173*(15.5-R8)^1.92) -> 724 | U9: =INT(0.2797*(U8*100-100)^1.35) -> 509 | X9: =INT(0.08713*(305.5-AA8)^1.85) -> 686
A10: 2 | B10: =VLOOKUP($E10,#REF!,2,FALSE) ->  | C10: =VLOOKUP($E10,#REF!,3,FALSE) ->  | D10: =VLOOKUP($E10,#REF!,5,FALSE) ->  | E10: 41 | F10: 8.17 | G10: =F11 -> 511 | H10: =RANK(G10,G$8:G$17) -> 5 | I10: 6.23 | J10: =G10+I11 -> 1148 | K10: =RANK(J10,J$8:J$17) -> 4 | L10: 11.36 | M10: =J10+L11 -> 1716 | N10: =RANK(M10,M$8:M$17) -> 4 | O10: 1.69 | P10: =M10+O11 -> 2252 | Q10: =RANK(P10,P$8:P$17) -> 4 | R10: 8.75 | S10: =P10+R11 -> 3054 | T10: =RANK(S10,S$8:S$17) -> 3 | U10: 2.60 | V10: =S10+U11 -> 3318 | W10: =RANK(V10,V$8:V$17) -> 3 | X10: 2,48,1 | Y10: =MID(X10,1,1) -> 2 | Z10: =MID(X10,3,5) -> 48,1 | AA10: =Y10*60+Z10 -> 1900-06-16T02:24:00 | AB10: =SUM(F11:X11) -> 4104 | AC10: =RANK(AB10,AB$18:AB$969) ->  | AD10: 1 | AE10: лич | AF10: =VLOOKUP($E10,#REF!,7,FALSE) -> 
D11: =VLOOKUP($E10,#REF!,6,FALSE) ->  | F11: =INT(58.015*(11.5-F10)^1.81) -> 511 | I11: =INT(0.14354*(I10*100-220)^1.4) -> 637 | L11: =INT(51.39*(L10-1.5)^1.05) -> 568 | O11: =INT(0.8465*(O10*100-75)^1.42) -> 536 | R11: =INT(20.5173*(15.5-R10)^1.92) -> 802 | U11: =INT(0.2797*(U10*100-100)^1.35) -> 264 | X11: =INT(0.08713*(305.5-AA10)^1.85) -> 786
A12: 3 | B12: =VLOOKUP($E12,#REF!,2,FALSE) ->  | C12: =VLOOKUP($E12,#REF!,3,FALSE) ->  | D12: =VLOOKUP($E12,#REF!,5,FALSE) ->  | E12: 48 | F12: 8.01 | G12: =F13 -> 557 | H12: =RANK(G12,G$8:G$17) -> 4 | I12: 5.79 | J12: =G12+I13 -> 1099 | K12: =RANK(J12,J$8:J$17) -> 5 | L12: 10.33 | M12: =J12+L13 -> 1604 | N12: =RANK(M12,M$8:M$17) -> 5 | O12: 1.69 | P12: =M12+O13 -> 2140 | Q12: =RANK(P12,P$8:P$17) -> 5 | R12: 9.15 | S12: =P12+R13 -> 2853 | T12: =RANK(S12,S$8:S$17) -> 5 | U12: 3.60 | V12: =S12+U13 -> 3362 | W12: =RANK(V12,V$8:V$17) -> 2 | X12: 2,47,4 | Y12: =MID(X12,1,1) -> 2 | Z12: =MID(X12,3,5) -> 47,4 | AA12: =Y12*60+Z12 -> 1900-06-15T09:36:00 | AB12: =SUM(F13:X13) -> 4155 | AC12: =RANK(AB12,AB$18:AB$969) ->  | AD12: 1 | AE12: 20+5 | AF12: =VLOOKUP($E12,#REF!,7,FALSE) -> 
D13: =VLOOKUP($E12,#REF!,6,FALSE) ->  | F13: =INT(58.015*(11.5-F12)^1.81) -> 557 | I13: =INT(0.14354*(I12*100-220)^1.4) -> 542 | L13: =INT(51.39*(L12-1.5)^1.05) -> 505 | O13: =INT(0.8465*(O12*100-75)^1.42) -> 536 | R13: =INT(20.5173*(15.5-R12)^1.92) -> 713 | U13: =INT(0.2797*(U12*100-100)^1.35) -> 509 | X13: =INT(0.08713*(305.5-AA12)^1.85) -> 793
A14: ВК | B14: =VLOOKUP($E14,#REF!,2,FALSE) ->  | C14: =VLOOKUP($E14,#REF!,3,FALSE) ->  | D14: =VLOOKUP($E14,#REF!,5,FALSE) ->  | E14: 49 | F14: 7.69 | G14: =F15 -> 653 | H14: =RANK(G14,G$8:G$17) -> 2 | I14: 5.59 | J14: =G14+I15 -> 1153 | K14: =RANK(J14,J$8:J$17) -> 3 | L14: 12.04 | M14: =J14+L15 -> 1762 | N14: =RANK(M14,M$8:M$17) -> 2 | O14: 1.66 | P14: =M14+O15 -> 2274 | Q14: =RANK(P14,P$8:P$17) -> 3 | R14: 8.59 | S14: =P14+R15 -> 3113 | T14: =RANK(S14,S$8:S$17) -> 2 | U14: 2.30 | V14: =S14+U15 -> 3312 | W14: =RANK(V14,V$8:V$17) -> 5 | X14: 3,08,2 | Y14: =MID(X14,1,1) -> 3 | Z14: =MID(X14,3,5) -> 08,2 | AA14: =Y14*60+Z14 -> 1900-07-06T04:48:00 | AB14: =SUM(F15:X15) -> 3898 | AC14: =RANK(AB14,AB$18:AB$969) ->  | AD14: 2 | AE14: лич | AF14: =VLOOKUP($E14,#REF!,7,FALSE) -> 
D15: =VLOOKUP($E14,#REF!,6,FALSE) ->  | F15: =INT(58.015*(11.5-F14)^1.81) -> 653 | I15: =INT(0.14354*(I14*100-220)^1.4) -> 500 | L15: =INT(51.39*(L14-1.5)^1.05) -> 609 | O15: =INT(0.8465*(O14*100-75)^1.42) -> 512 | R15: =INT(20.5173*(15.5-R14)^1.92) -> 839 | U15: =INT(0.2797*(U14*100-100)^1.35) -> 199 | X15: =INT(0.08713*(305.5-AA14)^1.85) -> 586
A16: ВК | B16: =VLOOKUP($E16,#REF!,2,FALSE) ->  | C16: =VLOOKUP($E16,#REF!,3,FALSE) ->  | D16: =VLOOKUP($E16,#REF!,5,FALSE) ->  | E16: 60 | F16: 7.61 | G16: =F17 -> 678 | H16: =RANK(G16,G$8:G$17) -> 1 | I16: 6.06 | J16: =G16+I17 -> 1278 | K16: =RANK(J16,J$8:J$17) -> 1 | L16: 9.80 | M16: =J16+L17 -> 1752 | N16: =RANK(M16,M$8:M$17) -> 3 | O16: 1.72 | P16: =M16+O17 -> 2312 | Q16: =RANK(P16,P$8:P$17) -> 2 | R16: 9.23 | S16: =P16+R17 -> 3008 | T16: =RANK(S16,S$8:S$17) -> 4 | U16: 2.80 | V16: =S16+U17 -> 3317 | W16: =RANK(V16,V$8:V$17) -> 4 | X16: 3,06,3 | Y16: =MID(X16,1,1) -> 3 | Z16: =MID(X16,3,5) -> 06,3 | AA16: =Y16*60+Z16 -> 1900-07-04T07:12:00 | AB16: =SUM(F17:X17) -> 3921 | AC16: =RANK(AB16,AB$18:AB$969) ->  | AD16: 2 | AE16: 22+5 | AF16: =VLOOKUP($E16,#REF!,7,FALSE) -> 
D17: =VLOOKUP($E16,#REF!,6,FALSE) ->  | F17: =INT(58.015*(11.5-F16)^1.81) -> 678 | I17: =INT(0.14354*(I16*100-220)^1.4) -> 600 | L17: =INT(51.39*(L16-1.5)^1.05) -> 474 | O17: =INT(0.8465*(O16*100-75)^1.42) -> 560 | R17: =INT(20.5173*(15.5-R16)^1.92) -> 696 | U17: =INT(0.2797*(U16*100-100)^1.35) -> 309 | X17: =INT(0.08713*(305.5-AA16)^1.85) -> 604
A18: 8 | B18: =VLOOKUP($E18,#REF!,2,FALSE) ->  | C18: =VLOOKUP($E18,#REF!,3,FALSE) ->  | D18: =VLOOKUP($E18,#REF!,5,FALSE) ->  | F18: =VLOOKUP($E18,#REF!, 3,FALSE) ->  | G18: =F19 ->  | H18: =RANK(G18,G$18:G$969) ->  | I18: =VLOOKUP($E18,#REF!,5,FALSE) ->  | J18: =G18+I19 ->  | K18: =RANK(J18,J$18:J$969) ->  | L18: =VLOOKUP($E18,#REF!,5,FALSE) ->  | M18: =J18+L19 ->  | N18: =RANK(M18,M$18:M$969) ->  | O18: =VLOOKUP($E18,#REF!,41,FALSE) ->  | P18: =M18+O19 ->  | Q18: =RANK(P18,P$18:P$969) ->  | R18: =VLOOKUP($E18,#REF!,3,FALSE) ->  | S18: =P18+R19 ->  | T18: =RANK(S18,S$18:S$969) ->  | U18: =VLOOKUP($E18,#REF!,41,FALSE) ->  | V18: =S18+U19 ->  | W18: =RANK(V18,V$18:V$969) ->  | X18: =VLOOKUP($E18,#REF!,3,FALSE) ->  | Y18: =MID(X18,1,1) ->  | Z18: =MID(X18,3,5) ->  | AA18: =Y18*60+Z18 ->  | AB18: =SUM(F19:X19) ->  | AC18: =RANK(AB18,AB$18:AB$969) ->  | AD18: мс | AE18: лич | AF18: =VLOOKUP($E18,#REF!,7,FALSE) -> 
D19: =VLOOKUP($E18,#REF!,6,FALSE) ->  | F19: =INT(58.015*(11.5-F18)^1.81) ->  | I19: =INT(0.14354*(I18*100-220)^1.4) ->  | L19: =INT(51.39*(L18-1.5)^1.05) ->  | O19: =INT(0.8465*(O18*100-75)^1.42) ->  | R19: =INT(20.5173*(15.5-R18)^1.92) ->  | U19: =INT(0.2797*(U18*100-100)^1.35) ->  | X19: =INT(0.08713*(305.5-AA18)^1.85) -> 
A20: 9 | B20: =VLOOKUP($E20,#REF!,2,FALSE) ->  | C20: =VLOOKUP($E20,#REF!,3,FALSE) ->  | D20: =VLOOKUP($E20,#REF!,5,FALSE) ->  | F20: =VLOOKUP($E20,#REF!, 3,FALSE) ->  | G20: =F21 ->  | H20: =RANK(G20,G$18:G$969) ->  | I20: =VLOOKUP($E20,#REF!,5,FALSE) ->  | J20: =G20+I21 ->  | K20: =RANK(J20,J$18:J$969) ->  | L20: =VLOOKUP($E20,#REF!,5,FALSE) ->  | M20: =J20+L21 ->  | N20: =RANK(M20,M$18:M$969) ->  | O20: =VLOOKUP($E20,#REF!,41,FALSE) ->  | P20: =M20+O21 ->  | Q20: =RANK(P20,P$18:P$969) ->  | R20: =VLOOKUP($E20,#REF!,3,FALSE) ->  | S20: =P20+R21 ->  | T20: =RANK(S20,S$18:S$969) ->  | U20: =VLOOKUP($E20,#REF!,41,FALSE) ->  | V20: =S20+U21 ->  | W20: =RANK(V20,V$18:V$969) ->  | X20: =VLOOKUP($E20,#REF!,3,FALSE) ->  | Y20: =MID(X20,1,1) ->  | Z20: =MID(X20,3,5) ->  | AA20: =Y20*60+Z20 ->  | AB20: =SUM(F21:X21) ->  | AC20: =RANK(AB20,AB$18:AB$969) ->  | AD20: мс | AE20: лич | AF20: =VLOOKUP($E20,#REF!,7,FALSE) -> 
D21: =VLOOKUP($E20,#REF!,6,FALSE) ->  | F21: =INT(58.015*(11.5-F20)^1.81) ->  | I21: =INT(0.14354*(I20*100-220)^1.4) ->  | L21: =INT(51.39*(L20-1.5)^1.05) ->  | O21: =INT(0.8465*(O20*100-75)^1.42) ->  | R21: =INT(20.5173*(15.5-R20)^1.92) ->  | U21: =INT(0.2797*(U20*100-100)^1.35) ->  | X21: =INT(0.08713*(305.5-AA20)^1.85) -> 
A22: 10 | B22: =VLOOKUP($E22,#REF!,2,FALSE) ->  | C22: =VLOOKUP($E22,#REF!,3,FALSE) ->  | D22: =VLOOKUP($E22,#REF!,5,FALSE) ->  | F22: =VLOOKUP($E22,#REF!, 3,FALSE) ->  | G22: =F23 ->  | H22: =RANK(G22,G$18:G$969) ->  | I22: =VLOOKUP($E22,#REF!,5,FALSE) ->  | J22: =G22+I23 ->  | K22: =RANK(J22,J$18:J$969) ->  | L22: =VLOOKUP($E22,#REF!,5,FALSE) ->  | M22: =J22+L23 ->  | N22: =RANK(M22,M$18:M$969) ->  | O22: =VLOOKUP($E22,#REF!,41,FALSE) ->  | P22: =M22+O23 ->  | Q22: =RANK(P22,P$18:P$969) ->  | R22: =VLOOKUP($E22,#REF!,3,FALSE) ->  | S22: =P22+R23 ->  | T22: =RANK(S22,S$18:S$969) ->  | U22: =VLOOKUP($E22,#REF!,41,FALSE) ->  | V22: =S22+U23 ->  | W22: =RANK(V22,V$18:V$969) ->  | X22: =VLOOKUP($E22,#REF!,3,FALSE) ->  | Y22: =MID(X22,1,1) ->  | Z22: =MID(X22,3,5) ->  | AA22: =Y22*60+Z22 ->  | AB22: =SUM(F23:X23) ->  | AC22: =RANK(AB22,AB$18:AB$969) ->  | AD22: мс | AE22: лич | AF22: =VLOOKUP($E22,#REF!,7,FALSE) -> 
F23: =INT(58.015*(11.5-F22)^1.81) ->  | I23: =INT(0.14354*(I22*100-220)^1.4) ->  | L23: =INT(51.39*(L22-1.5)^1.05) ->  | O23: =INT(0.8465*(O22*100-75)^1.42) ->  | R23: =INT(20.5173*(15.5-R22)^1.92) ->  | U23: =INT(0.2797*(U22*100-100)^1.35) ->  | X23: =INT(0.08713*(305.5-AA22)^1.85) -> 
A24: 11 | B24: =VLOOKUP($E24,#REF!,2,FALSE) ->  | C24: =VLOOKUP($E24,#REF!,3,FALSE) ->  | D24: =VLOOKUP($E24,#REF!,5,FALSE) ->  | F24: =VLOOKUP($E24,#REF!, 3,FALSE) ->  | G24: =F25 ->  | H24: =RANK(G24,G$18:G$969) ->  | I24: =VLOOKUP($E24,#REF!,5,FALSE) ->  | J24: =G24+I25 ->  | K24: =RANK(J24,J$18:J$969) ->  | L24: =VLOOKUP($E24,#REF!,5,FALSE) ->  | M24: =J24+L25 ->  | N24: =RANK(M24,M$18:M$969) ->  | O24: =VLOOKUP($E24,#REF!,41,FALSE) ->  | P24: =M24+O25 ->  | Q24: =RANK(P24,P$18:P$969) ->  | R24: =VLOOKUP($E24,#REF!,3,FALSE) ->  | S24: =P24+R25 ->  | T24: =RANK(S24,S$18:S$969) ->  | U24: =VLOOKUP($E24,#REF!,41,FALSE) ->  | V24: =S24+U25 ->  | W24: =RANK(V24,V$18:V$969) ->  | X24: =VLOOKUP($E24,#REF!,3,FALSE) ->  | Y24: =MID(X24,1,1) ->  | Z24: =MID(X24,3,5) ->  | AA24: =Y24*60+Z24 ->  | AB24: =SUM(F25:X25) ->  | AC24: =RANK(AB24,AB$18:AB$969) ->  | AD24: мс | AE24: лич | AF24: =VLOOKUP($E24,#REF!,7,FALSE) -> 
D25: =VLOOKUP($E24,#REF!,6,FALSE) ->  | F25: =INT(58.015*(11.5-F24)^1.81) ->  | I25: =INT(0.14354*(I24*100-220)^1.4) ->  | L25: =INT(51.39*(L24-1.5)^1.05) ->  | O25: =INT(0.8465*(O24*100-75)^1.42) ->  | R25: =INT(20.5173*(15.5-R24)^1.92) ->  | U25: =INT(0.2797*(U24*100-100)^1.35) ->  | X25: =INT(0.08713*(305.5-AA24)^1.85) -> 
A26: 12 | B26: =VLOOKUP($E26,#REF!,2,FALSE) ->  | C26: =VLOOKUP($E26,#REF!,3,FALSE) ->  | D26: =VLOOKUP($E26,#REF!,5,FALSE) ->  | F26: =VLOOKUP($E26,#REF!, 3,FALSE) ->  | G26: =F27 ->  | H26: =RANK(G26,G$18:G$969) ->  | I26: =VLOOKUP($E26,#REF!,5,FALSE) ->  | J26: =G26+I27 ->  | K26: =RANK(J26,J$18:J$969) ->  | L26: =VLOOKUP($E26,#REF!,5,FALSE) ->  | M26: =J26+L27 ->  | N26: =RANK(M26,M$18:M$969) ->  | O26: =VLOOKUP($E26,#REF!,41,FALSE) ->  | P26: =M26+O27 ->  | Q26: =RANK(P26,P$18:P$969) ->  | R26: =VLOOKUP($E26,#REF!,3,FALSE) ->  | S26: =P26+R27 ->  | T26: =RANK(S26,S$18:S$969) ->  | U26: =VLOOKUP($E26,#REF!,41,FALSE) ->  | V26: =S26+U27 ->  | W26: =RANK(V26,V$18:V$969) ->  | X26: =VLOOKUP($E26,#REF!,3,FALSE) ->  | Y26: =MID(X26,1,1) ->  | Z26: =MID(X26,3,5) ->  | AA26: =Y26*60+Z26 ->  | AB26: =SUM(F27:X27) ->  | AC26: =RANK(AB26,AB$18:AB$969) ->  | AD26: мс | AE26: 19+5 | AF26: =VLOOKUP($E26,#REF!,7,FALSE) -> 
D27: =VLOOKUP($E26,#REF!,6,FALSE) ->  | F27: =INT(58.015*(11.5-F26)^1.81) ->  | I27: =INT(0.14354*(I26*100-220)^1.4) ->  | L27: =INT(51.39*(L26-1.5)^1.05) ->  | O27: =INT(0.8465*(O26*100-75)^1.42) ->  | R27: =INT(20.5173*(15.5-R26)^1.92) ->  | U27: =INT(0.2797*(U26*100-100)^1.35) ->  | X27: =INT(0.08713*(305.5-AA26)^1.85) -> 
A28: 13 | B28: =VLOOKUP($E28,#REF!,2,FALSE) ->  | C28: =VLOOKUP($E28,#REF!,3,FALSE) ->  | D28: =VLOOKUP($E28,#REF!,5,FALSE) ->  | F28: =VLOOKUP($E28,#REF!, 3,FALSE) ->  | G28: =F29 ->  | H28: =RANK(G28,G$18:G$969) ->  | I28: =VLOOKUP($E28,#REF!,5,FALSE) ->  | J28: =G28+I29 ->  | K28: =RANK(J28,J$18:J$969) ->  | L28: =VLOOKUP($E28,#REF!,5,FALSE) ->  | M28: =J28+L29 ->  | N28: =RANK(M28,M$18:M$969) ->  | O28: =VLOOKUP($E28,#REF!,41,FALSE) ->  | P28: =M28+O29 ->  | Q28: =RANK(P28,P$18:P$969) ->  | R28: =VLOOKUP($E28,#REF!,3,FALSE) ->  | S28: =P28+R29 ->  | T28: =RANK(S28,S$18:S$969) ->  | U28: =VLOOKUP($E28,#REF!,41,FALSE) ->  | V28: =S28+U29 ->  | W28: =RANK(V28,V$18:V$969) ->  | X28: =VLOOKUP($E28,#REF!,3,FALSE) ->  | Y28: =MID(X28,1,1) ->  | Z28: =MID(X28,3,5) ->  | AA28: =Y28*60+Z28 ->  | AB28: =SUM(F29:X29) ->  | AC28: =RANK(AB28,AB$18:AB$969) ->  | AD28: мс | AE28: лич | AF28: =VLOOKUP($E28,#REF!,7,FALSE) -> 
D29: =VLOOKUP($E28,#REF!,6,FALSE) ->  | F29: =INT(58.015*(11.5-F28)^1.81) ->  | I29: =INT(0.14354*(I28*100-220)^1.4) ->  | L29: =INT(51.39*(L28-1.5)^1.05) ->  | O29: =INT(0.8465*(O28*100-75)^1.42) ->  | R29: =INT(20.5173*(15.5-R28)^1.92) ->  | U29: =INT(0.2797*(U28*100-100)^1.35) ->  | X29: =INT(0.08713*(305.5-AA28)^1.85) -> 
A30: 14 | B30: =VLOOKUP($E30,#REF!,2,FALSE) ->  | C30: =VLOOKUP($E30,#REF!,3,FALSE) ->  | D30: =VLOOKUP($E30,#REF!,5,FALSE) ->  | F30: =VLOOKUP($E30,#REF!, 3,FALSE) ->  | G30: =F31 ->  | H30: =RANK(G30,G$18:G$969) ->  | I30: =VLOOKUP($E30,#REF!,5,FALSE) ->  | J30: =G30+I31 ->  | K30: =RANK(J30,J$18:J$969) ->  | L30: =VLOOKUP($E30,#REF!,5,FALSE) ->  | M30: =J30+L31 ->  | N30: =RANK(M30,M$18:M$969) ->  | O30: =VLOOKUP($E30,#REF!,41,FALSE) ->  | P30: =M30+O31 ->  | Q30: =RANK(P30,P$18:P$969) ->  | R30: =VLOOKUP($E30,#REF!,3,FALSE) ->  | S30: =P30+R31 ->  | T30: =RANK(S30,S$18:S$969) ->  | U30: =VLOOKUP($E30,#REF!,41,FALSE) ->  | V30: =S30+U31 ->  | W30: =RANK(V30,V$18:V$969) ->  | X30: =VLOOKUP($E30,#REF!,3,FALSE) ->  | Y30: =MID(X30,1,1) ->  | Z30: =MID(X30,3,5) ->  | AA30: =Y30*60+Z30 ->  | AB30: =SUM(F31:X31) ->  | AC30: =RANK(AB30,AB$18:AB$969) ->  | AD30: мс | AE30: лич | AF30: =VLOOKUP($E30,#REF!,7,FALSE) -> 
D31: =VLOOKUP($E30,#REF!,6,FALSE) ->  | F31: =INT(58.015*(11.5-F30)^1.81) ->  | I31: =INT(0.14354*(I30*100-220)^1.4) ->  | L31: =INT(51.39*(L30-1.5)^1.05) ->  | O31: =INT(0.8465*(O30*100-75)^1.42) ->  | R31: =INT(20.5173*(15.5-R30)^1.92) ->  | U31: =INT(0.2797*(U30*100-100)^1.35) ->  | X31: =INT(0.08713*(305.5-AA30)^1.85) -> 
A32: 15 | B32: =VLOOKUP($E32,#REF!,2,FALSE) ->  | C32: =VLOOKUP($E32,#REF!,3,FALSE) ->  | D32: =VLOOKUP($E32,#REF!,5,FALSE) ->  | F32: =VLOOKUP($E32,#REF!, 3,FALSE) ->  | G32: =F33 ->  | H32: =RANK(G32,G$18:G$969) ->  | I32: =VLOOKUP($E32,#REF!,5,FALSE) ->  | J32: =G32+I33 ->  | K32: =RANK(J32,J$18:J$969) ->  | L32: =VLOOKUP($E32,#REF!,5,FALSE) ->  | M32: =J32+L33 ->  | N32: =RANK(M32,M$18:M$969) ->  | O32: =VLOOKUP($E32,#REF!,41,FALSE) ->  | P32: =M32+O33 ->  | Q32: =RANK(P32,P$18:P$969) ->  | R32: =VLOOKUP($E32,#REF!,3,FALSE) ->  | S32: =P32+R33 ->  | T32: =RANK(S32,S$18:S$969) ->  | U32: =VLOOKUP($E32,#REF!,41,FALSE) ->  | V32: =S32+U33 ->  | W32: =RANK(V32,V$18:V$969) ->  | X32: =VLOOKUP($E32,#REF!,3,FALSE) ->  | Y32: =MID(X32,1,1) ->  | Z32: =MID(X32,3,5) ->  | AA32: =Y32*60+Z32 ->  | AB32: =SUM(F33:X33) ->  | AC32: =RANK(AB32,AB$18:AB$969) ->  | AD32: мс | AE32: лич | AF32: =VLOOKUP($E32,#REF!,7,FALSE) -> 
D33: =VLOOKUP($E32,#REF!,6,FALSE) ->  | F33: =INT(58.015*(11.5-F32)^1.81) ->  | I33: =INT(0.14354*(I32*100-220)^1.4) ->  | L33: =INT(51.39*(L32-1.5)^1.05) ->  | O33: =INT(0.8465*(O32*100-75)^1.42) ->  | R33: =INT(20.5173*(15.5-R32)^1.92) ->  | U33: =INT(0.2797*(U32*100-100)^1.35) ->  | X33: =INT(0.08713*(305.5-AA32)^1.85) -> 
A34: 16 | B34: =VLOOKUP($E34,#REF!,2,FALSE) ->  | C34: =VLOOKUP($E34,#REF!,3,FALSE) ->  | D34: =VLOOKUP($E34,#REF!,5,FALSE) ->  | F34: =VLOOKUP($E34,#REF!, 3,FALSE) ->  | G34: =F35 ->  | H34: =RANK(G34,G$18:G$969) ->  | I34: =VLOOKUP($E34,#REF!,5,FALSE) ->  | J34: =G34+I35 ->  | K34: =RANK(J34,J$18:J$969) ->  | L34: =VLOOKUP($E34,#REF!,5,FALSE) ->  | M34: =J34+L35 ->  | N34: =RANK(M34,M$18:M$969) ->  | O34: =VLOOKUP($E34,#REF!,41,FALSE) ->  | P34: =M34+O35 ->  | Q34: =RANK(P34,P$18:P$969) ->  | R34: =VLOOKUP($E34,#REF!,3,FALSE) ->  | S34: =P34+R35 ->  | T34: =RANK(S34,S$18:S$969) ->  | U34: =VLOOKUP($E34,#REF!,41,FALSE) ->  | V34: =S34+U35 ->  | W34: =RANK(V34,V$18:V$969) ->  | X34: =VLOOKUP($E34,#REF!,3,FALSE) ->  | Y34: =MID(X34,1,1) ->  | Z34: =MID(X34,3,5) ->  | AA34: =Y34*60+Z34 ->  | AB34: =SUM(F35:X35) ->  | AC34: =RANK(AB34,AB$18:AB$969) ->  | AD34: мс | AE34: 18+5 | AF34: =VLOOKUP($E34,#REF!,7,FALSE) -> 
D35: =VLOOKUP($E34,#REF!,6,FALSE) ->  | F35: =INT(58.015*(11.5-F34)^1.81) ->  | I35: =INT(0.14354*(I34*100-220)^1.4) ->  | L35: =INT(51.39*(L34-1.5)^1.05) ->  | O35: =INT(0.8465*(O34*100-75)^1.42) ->  | R35: =INT(20.5173*(15.5-R34)^1.92) ->  | U35: =INT(0.2797*(U34*100-100)^1.35) ->  | X35: =INT(0.08713*(305.5-AA34)^1.85) -> 
A36: 17 | B36: =VLOOKUP($E36,#REF!,2,FALSE) ->  | C36: =VLOOKUP($E36,#REF!,3,FALSE) ->  | D36: =VLOOKUP($E36,#REF!,5,FALSE) ->  | F36: =VLOOKUP($E36,#REF!, 3,FALSE) ->  | H36: =RANK(G36,G$18:G$969) ->  | I36: =VLOOKUP($E36,#REF!,5,FALSE) ->  | J36: =G36+I37 ->  | K36: =RANK(J36,J$18:J$969) ->  | L36: =VLOOKUP($E36,#REF!,5,FALSE) ->  | M36: =J36+L37 ->  | N36: =RANK(M36,M$18:M$969) ->  | O36: =VLOOKUP($E36,#REF!,41,FALSE) ->  | P36: =M36+O37 ->  | Q36: =RANK(P36,P$18:P$969) ->  | R36: =VLOOKUP($E36,#REF!,3,FALSE) ->  | S36: =P36+R37 ->  | T36: =RANK(S36,S$18:S$969) ->  | U36: =VLOOKUP($E36,#REF!,41,FALSE) ->  | V36: =S36+U37 ->  | W36: =RANK(V36,V$18:V$969) ->  | X36: =VLOOKUP($E36,#REF!,3,FALSE) ->  | Z36: =MID(X36,3,5) ->  | AA36: =Y36*60+Z36 ->  | AB36: =SUM(F37:X37) ->  | AC36: =RANK(AB36,AB$18:AB$969) ->  | AD36: кмс | AE36: 17 | AF36: =VLOOKUP($E36,#REF!,7,FALSE) -> 
D37: =VLOOKUP($E36,#REF!,6,FALSE) ->  | F37: =INT(58.015*(11.5-F36)^1.81) ->  | I37: =INT(0.14354*(I36*100-220)^1.4) ->  | L37: =INT(51.39*(L36-1.5)^1.05) ->  | O37: =INT(0.8465*(O36*100-75)^1.42) ->  | R37: =INT(20.5173*(15.5-R36)^1.92) ->  | U37: =INT(0.2797*(U36*100-100)^1.35) ->  | X37: =INT(0.08713*(305.5-AA36)^1.85) -> 
A38: 18 | B38: =VLOOKUP($E38,#REF!,2,FALSE) ->  | C38: =VLOOKUP($E38,#REF!,3,FALSE) ->  | D38: =VLOOKUP($E38,#REF!,5,FALSE) ->  | F38: =VLOOKUP($E38,#REF!, 3,FALSE) ->  | G38: =F39 ->  | H38: =RANK(G38,G$18:G$969) ->  | I38: =VLOOKUP($E38,#REF!,5,FALSE) ->  | J38: =G38+I39 ->  | K38: =RANK(J38,J$18:J$969) ->  | L38: =VLOOKUP($E38,#REF!,5,FALSE) ->  | M38: =J38+L39 ->  | N38: =RANK(M38,M$18:M$969) ->  | O38: =VLOOKUP($E38,#REF!,41,FALSE) ->  | P38: =M38+O39 ->  | Q38: =RANK(P38,P$18:P$969) ->  | R38: =VLOOKUP($E38,#REF!,3,FALSE) ->  | S38: =P38+R39 ->  | T38: =RANK(S38,S$18:S$969) ->  | U38: =VLOOKUP($E38,#REF!,41,FALSE) ->  | V38: =S38+U39 ->  | W38: =RANK(V38,V$18:V$969) ->  | X38: =VLOOKUP($E38,#REF!,3,FALSE) ->  | Y38: =MID(X38,1,1) ->  | Z38: =MID(X38,3,5) ->  | AA38: =Y38*60+Z38 ->  | AB38: =SUM(F39:X39) ->  | AC38: =RANK(AB38,AB$18:AB$969) ->  | AD38: кмс | AE38: лич | AF38: =VLOOKUP($E38,#REF!,7,FALSE) -> 
D39: =VLOOKUP($E38,#REF!,6,FALSE) ->  | F39: =INT(58.015*(11.5-F38)^1.81) ->  | I39: =INT(0.14354*(I38*100-220)^1.4) ->  | L39: =INT(51.39*(L38-1.5)^1.05) ->  | O39: =INT(0.8465*(O38*100-75)^1.42) ->  | R39: =INT(20.5173*(15.5-R38)^1.92) ->  | U39: =INT(0.2797*(U38*100-100)^1.35) ->  | X39: =INT(0.08713*(305.5-AA38)^1.85) -> 
A40: 19 | B40: =VLOOKUP($E40,#REF!,2,FALSE) ->  | C40: =VLOOKUP($E40,#REF!,3,FALSE) ->  | D40: =VLOOKUP($E40,#REF!,5,FALSE) ->  | F40: =VLOOKUP($E40,#REF!, 3,FALSE) ->  | H40: =RANK(G40,G$18:G$969) ->  | I40: =VLOOKUP($E40,#REF!,5,FALSE) ->  | J40: =G40+I41 ->  | K40: =RANK(J40,J$18:J$969) ->  | L40: =VLOOKUP($E40,#REF!,5,FALSE) ->  | M40: =J40+L41 ->  | N40: =RANK(M40,M$18:M$969) ->  | O40: =VLOOKUP($E40,#REF!,41,FALSE) ->  | P40: =M40+O41 ->  | Q40: =RANK(P40,P$18:P$969) ->  | R40: =VLOOKUP($E40,#REF!,3,FALSE) ->  | S40: =P40+R41 ->  | T40: =RANK(S40,S$18:S$969) ->  | U40: =VLOOKUP($E40,#REF!,41,FALSE) ->  | V40: =S40+U41 ->  | W40: =RANK(V40,V$18:V$969) ->  | X40: =VLOOKUP($E40,#REF!,3,FALSE) ->  | Z40: =MID(X40,3,5) ->  | AA40: =Y40*60+Z40 ->  | AB40: =SUM(F41:X41) ->  | AC40: =RANK(AB40,AB$18:AB$969) ->  | AD40: кмс | AE40: 16 | AF40: =VLOOKUP($E40,#REF!,7,FALSE) -> 
D41: =VLOOKUP($E40,#REF!,6,FALSE) ->  | F41: =INT(58.015*(11.5-F40)^1.81) ->  | I41: =INT(0.14354*(I40*100-220)^1.4) ->  | L41: =INT(51.39*(L40-1.5)^1.05) ->  | O41: =INT(0.8465*(O40*100-75)^1.42) ->  | R41: =INT(20.5173*(15.5-R40)^1.92) ->  | U41: =INT(0.2797*(U40*100-100)^1.35) ->  | X41: =INT(0.08713*(305.5-AA40)^1.85) -> 
A42: 20 | B42: =VLOOKUP($E42,#REF!,2,FALSE) ->  | C42: =VLOOKUP($E42,#REF!,3,FALSE) ->  | D42: =VLOOKUP($E42,#REF!,5,FALSE) ->  | F42: =VLOOKUP($E42,#REF!, 3,FALSE) ->  | H42: =RANK(G42,G$18:G$969) ->  | I42: =VLOOKUP($E42,#REF!,5,FALSE) ->  | J42: =G42+I43 ->  | K42: =RANK(J42,J$18:J$969) ->  | L42: =VLOOKUP($E42,#REF!,5,FALSE) ->  | M42: =J42+L43 ->  | N42: =RANK(M42,M$18:M$969) ->  | O42: =VLOOKUP($E42,#REF!,41,FALSE) ->  | P42: =M42+O43 ->  | Q42: =RANK(P42,P$18:P$969) ->  | R42: =VLOOKUP($E42,#REF!,3,FALSE) ->  | S42: =P42+R43 ->  | T42: =RANK(S42,S$18:S$969) ->  | U42: =VLOOKUP($E42,#REF!,41,FALSE) ->  | V42: =S42+U43 ->  | W42: =RANK(V42,V$18:V$969) ->  | X42: =VLOOKUP($E42,#REF!,3,FALSE) ->  | Z42: =MID(X42,3,5) ->  | AA42: =Y42*60+Z42 ->  | AB42: =SUM(F43:X43) ->  | AC42: =RANK(AB42,AB$18:AB$969) ->  | AD42: кмс | AE42: 15 | AF42: =VLOOKUP($E42,#REF!,7,FALSE) -> 
D43: =VLOOKUP($E42,#REF!,6,FALSE) ->  | F43: =INT(58.015*(11.5-F42)^1.81) ->  | I43: =INT(0.14354*(I42*100-220)^1.4) ->  | L43: =INT(51.39*(L42-1.5)^1.05) ->  | O43: =INT(0.8465*(O42*100-75)^1.42) ->  | R43: =INT(20.5173*(15.5-R42)^1.92) ->  | U43: =INT(0.2797*(U42*100-100)^1.35) ->  | X43: =INT(0.08713*(305.5-AA42)^1.85) -> 
A44: 21 | B44: =VLOOKUP($E44,#REF!,2,FALSE) ->  | C44: =VLOOKUP($E44,#REF!,3,FALSE) ->  | D44: =VLOOKUP($E44,#REF!,5,FALSE) ->  | F44: =VLOOKUP($E44,#REF!, 3,FALSE) ->  | H44: =RANK(G44,G$18:G$969) ->  | I44: =VLOOKUP($E44,#REF!,5,FALSE) ->  | J44: =G44+I45 ->  | K44: =RANK(J44,J$18:J$969) ->  | L44: =VLOOKUP($E44,#REF!,5,FALSE) ->  | M44: =J44+L45 ->  | N44: =RANK(M44,M$18:M$969) ->  | O44: =VLOOKUP($E44,#REF!,41,FALSE) ->  | P44: =M44+O45 ->  | Q44: =RANK(P44,P$18:P$969) ->  | R44: =VLOOKUP($E44,#REF!,3,FALSE) ->  | S44: =P44+R45 ->  | T44: =RANK(S44,S$18:S$969) ->  | U44: =VLOOKUP($E44,#REF!,41,FALSE) ->  | V44: =S44+U45 ->  | W44: =RANK(V44,V$18:V$969) ->  | X44: =VLOOKUP($E44,#REF!,3,FALSE) ->  | Z44: =MID(X44,3,5) ->  | AA44: =Y44*60+Z44 ->  | AB44: =SUM(F45:X45) ->  | AC44: =RANK(AB44,AB$18:AB$969) ->  | AD44: кмс | AE44: лич | AF44: =VLOOKUP($E44,#REF!,7,FALSE) -> 
D45: =VLOOKUP($E44,#REF!,6,FALSE) ->  | F45: =INT(58.015*(11.5-F44)^1.81) ->  | I45: =INT(0.14354*(I44*100-220)^1.4) ->  | L45: =INT(51.39*(L44-1.5)^1.05) ->  | O45: =INT(0.8465*(O44*100-75)^1.42) ->  | R45: =INT(20.5173*(15.5-R44)^1.92) ->  | U45: =INT(0.2797*(U44*100-100)^1.35) ->  | X45: =INT(0.08713*(305.5-AA44)^1.85) -> 
A46: 22 | B46: =VLOOKUP($E46,#REF!,2,FALSE) ->  | C46: =VLOOKUP($E46,#REF!,3,FALSE) ->  | D46: =VLOOKUP($E46,#REF!,5,FALSE) ->  | F46: =VLOOKUP($E46,#REF!, 3,FALSE) ->  | H46: =RANK(G46,G$18:G$969) ->  | I46: =VLOOKUP($E46,#REF!,5,FALSE) ->  | J46: =G46+I47 ->  | K46: =RANK(J46,J$18:J$969) ->  | L46: =VLOOKUP($E46,#REF!,5,FALSE) ->  | M46: =J46+L47 ->  | N46: =RANK(M46,M$18:M$969) ->  | O46: =VLOOKUP($E46,#REF!,41,FALSE) ->  | P46: =M46+O47 ->  | Q46: =RANK(P46,P$18:P$969) ->  | R46: =VLOOKUP($E46,#REF!,3,FALSE) ->  | S46: =P46+R47 ->  | T46: =RANK(S46,S$18:S$969) ->  | U46: =VLOOKUP($E46,#REF!,41,FALSE) ->  | V46: =S46+U47 ->  | W46: =RANK(V46,V$18:V$969) ->  | X46: =VLOOKUP($E46,#REF!,3,FALSE) ->  | Z46: =MID(X46,3,5) ->  | AA46: =Y46*60+Z46 ->  | AB46: =SUM(F47:X47) ->  | AC46: =RANK(AB46,AB$18:AB$969) ->  | AD46: кмс | AE46: лич | AF46: =VLOOKUP($E46,#REF!,7,FALSE) -> 
D47: =VLOOKUP($E46,#REF!,6,FALSE) ->  | F47: =INT(58.015*(11.5-F46)^1.81) ->  | I47: =INT(0.14354*(I46*100-220)^1.4) ->  | L47: =INT(51.39*(L46-1.5)^1.05) ->  | O47: =INT(0.8465*(O46*100-75)^1.42) ->  | R47: =INT(20.5173*(15.5-R46)^1.92) ->  | U47: =INT(0.2797*(U46*100-100)^1.35) ->  | X47: =INT(0.08713*(305.5-AA46)^1.85) -> 
A48: 23 | B48: =VLOOKUP($E48,#REF!,2,FALSE) ->  | C48: =VLOOKUP($E48,#REF!,3,FALSE) ->  | D48: =VLOOKUP($E48,#REF!,5,FALSE) ->  | F48: =VLOOKUP($E48,#REF!, 3,FALSE) ->  | H48: =RANK(G48,G$18:G$969) ->  | I48: =VLOOKUP($E48,#REF!,5,FALSE) ->  | J48: =G48+I49 ->  | K48: =RANK(J48,J$18:J$969) ->  | L48: =VLOOKUP($E48,#REF!,5,FALSE) ->  | M48: =J48+L49 ->  | N48: =RANK(M48,M$18:M$969) ->  | O48: =VLOOKUP($E48,#REF!,41,FALSE) ->  | P48: =M48+O49 ->  | Q48: =RANK(P48,P$18:P$969) ->  | R48: =VLOOKUP($E48,#REF!,3,FALSE) ->  | S48: =P48+R49 ->  | T48: =RANK(S48,S$18:S$969) ->  | U48: =VLOOKUP($E48,#REF!,41,FALSE) ->  | V48: =S48+U49 ->  | W48: =RANK(V48,V$18:V$969) ->  | X48: =VLOOKUP($E48,#REF!,3,FALSE) ->  | Z48: =MID(X48,3,5) ->  | AA48: =Y48*60+Z48 ->  | AB48: =SUM(F49:X49) ->  | AC48: =RANK(AB48,AB$18:AB$969) ->  | AD48: кмс | AE48: лич | AF48: =VLOOKUP($E48,#REF!,7,FALSE) -> 
D49: =VLOOKUP($E48,#REF!,6,FALSE) ->  | F49: =INT(58.015*(11.5-F48)^1.81) ->  | I49: =INT(0.14354*(I48*100-220)^1.4) ->  | L49: =INT(51.39*(L48-1.5)^1.05) ->  | O49: =INT(0.8465*(O48*100-75)^1.42) ->  | R49: =INT(20.5173*(15.5-R48)^1.92) ->  | U49: =INT(0.2797*(U48*100-100)^1.35) ->  | X49: =INT(0.08713*(305.5-AA48)^1.85) -> 
A50: 24 | B50: =VLOOKUP($E50,#REF!,2,FALSE) ->  | C50: =VLOOKUP($E50,#REF!,3,FALSE) ->  | D50: =VLOOKUP($E50,#REF!,5,FALSE) ->  | F50: =VLOOKUP($E50,#REF!, 3,FALSE) ->  | H50: =RANK(G50,G$18:G$969) ->  | I50: =VLOOKUP($E50,#REF!,5,FALSE) ->  | J50: =G50+I51 ->  | K50: =RANK(J50,J$18:J$969) ->  | L50: =VLOOKUP($E50,#REF!,5,FALSE) ->  | M50: =J50+L51 ->  | N50: =RANK(M50,M$18:M$969) ->  | O50: =VLOOKUP($E50,#REF!,41,FALSE) ->  | P50: =M50+O51 ->  | Q50: =RANK(P50,P$18:P$969) ->  | R50: =VLOOKUP($E50,#REF!,3,FALSE) ->  | S50: =P50+R51 ->  | T50: =RANK(S50,S$18:S$969) ->  | U50: =VLOOKUP($E50,#REF!,41,FALSE) ->  | V50: =S50+U51 ->  | W50: =RANK(V50,V$18:V$969) ->  | X50: =VLOOKUP($E50,#REF!,3,FALSE) ->  | Z50: =MID(X50,3,5) ->  | AA50: =Y50*60+Z50 ->  | AB50: =SUM(F51:X51) ->  | AC50: =RANK(AB50,AB$18:AB$969) ->  | AD50: кмс | AE50: лич | AF50: =VLOOKUP($E50,#REF!,7,FALSE) -> 
D51: =VLOOKUP($E50,#REF!,6,FALSE) ->  | F51: =INT(58.015*(11.5-F50)^1.81) ->  | I51: =INT(0.14354*(I50*100-220)^1.4) ->  | L51: =INT(51.39*(L50-1.5)^1.05) ->  | O51: =INT(0.8465*(O50*100-75)^1.42) ->  | R51: =INT(20.5173*(15.5-R50)^1.92) ->  | U51: =INT(0.2797*(U50*100-100)^1.35) ->  | X51: =INT(0.08713*(305.5-AA50)^1.85) -> 
A52: 25 | B52: =VLOOKUP($E52,#REF!,2,FALSE) ->  | C52: =VLOOKUP($E52,#REF!,3,FALSE) ->  | D52: =VLOOKUP($E52,#REF!,5,FALSE) ->  | F52: =VLOOKUP($E52,#REF!, 3,FALSE) ->  | H52: =RANK(G52,G$18:G$969) ->  | I52: =VLOOKUP($E52,#REF!,5,FALSE) ->  | J52: =G52+I53 ->  | K52: =RANK(J52,J$18:J$969) ->  | L52: =VLOOKUP($E52,#REF!,5,FALSE) ->  | M52: =J52+L53 ->  | N52: =RANK(M52,M$18:M$969) ->  | O52: =VLOOKUP($E52,#REF!,41,FALSE) ->  | P52: =M52+O53 ->  | Q52: =RANK(P52,P$18:P$969) ->  | R52: =VLOOKUP($E52,#REF!,3,FALSE) ->  | S52: =P52+R53 ->  | T52: =RANK(S52,S$18:S$969) ->  | U52: =VLOOKUP($E52,#REF!,41,FALSE) ->  | V52: =S52+U53 ->  | W52: =RANK(V52,V$18:V$969) ->  | X52: =VLOOKUP($E52,#REF!,3,FALSE) ->  | Z52: =MID(X52,3,5) ->  | AA52: =Y52*60+Z52 ->  | AB52: =SUM(F53:X53) ->  | AC52: =RANK(AB52,AB$18:AB$969) ->  | AD52: кмс | AE52: 14 | AF52: =VLOOKUP($E52,#REF!,7,FALSE) -> 
D53: =VLOOKUP($E52,#REF!,6,FALSE) ->  | F53: =INT(58.015*(11.5-F52)^1.81) ->  | I53: =INT(0.14354*(I52*100-220)^1.4) ->  | L53: =INT(51.39*(L52-1.5)^1.05) ->  | O53: =INT(0.8465*(O52*100-75)^1.42) ->  | R53: =INT(20.5173*(15.5-R52)^1.92) ->  | U53: =INT(0.2797*(U52*100-100)^1.35) ->  | X53: =INT(0.08713*(305.5-AA52)^1.85) -> 
A54: 26 | B54: =VLOOKUP($E54,#REF!,2,FALSE) ->  | C54: =VLOOKUP($E54,#REF!,3,FALSE) ->  | D54: =VLOOKUP($E54,#REF!,5,FALSE) ->  | F54: =VLOOKUP($E54,#REF!, 3,FALSE) ->  | H54: =RANK(G54,G$18:G$969) ->  | I54: =VLOOKUP($E54,#REF!,5,FALSE) ->  | J54: =G54+I55 ->  | K54: =RANK(J54,J$18:J$969) ->  | L54: =VLOOKUP($E54,#REF!,5,FALSE) ->  | M54: =J54+L55 ->  | N54: =RANK(M54,M$18:M$969) ->  | O54: =VLOOKUP($E54,#REF!,41,FALSE) ->  | P54: =M54+O55 ->  | Q54: =RANK(P54,P$18:P$969) ->  | R54: =VLOOKUP($E54,#REF!,3,FALSE) ->  | S54: =P54+R55 ->  | T54: =RANK(S54,S$18:S$969) ->  | U54: =VLOOKUP($E54,#REF!,41,FALSE) ->  | V54: =S54+U55 ->  | W54: =RANK(V54,V$18:V$969) ->  | X54: =VLOOKUP($E54,#REF!,3,FALSE) ->  | Z54: =MID(X54,3,5) ->  | AA54: =Y54*60+Z54 ->  | AB54: =SUM(F55:X55) ->  | AC54: =RANK(AB54,AB$18:AB$969) ->  | AD54: кмс | AE54: лич | AF54: =VLOOKUP($E54,#REF!,7,FALSE) -> 
D55: =VLOOKUP($E54,#REF!,6,FALSE) ->  | F55: =INT(58.015*(11.5-F54)^1.81) ->  | I55: =INT(0.14354*(I54*100-220)^1.4) ->  | L55: =INT(51.39*(L54-1.5)^1.05) ->  | O55: =INT(0.8465*(O54*100-75)^1.42) ->  | R55: =INT(20.5173*(15.5-R54)^1.92) ->  | U55: =INT(0.2797*(U54*100-100)^1.35) ->  | X55: =INT(0.08713*(305.5-AA54)^1.85) -> 
A56: 27 | B56: =VLOOKUP($E56,#REF!,2,FALSE) ->  | C56: =VLOOKUP($E56,#REF!,3,FALSE) ->  | D56: =VLOOKUP($E56,#REF!,5,FALSE) ->  | F56: =VLOOKUP($E56,#REF!, 3,FALSE) ->  | G56: =F57 ->  | H56: =RANK(G56,G$18:G$969) ->  | I56: =VLOOKUP($E56,#REF!,5,FALSE) ->  | J56: =G56+I57 ->  | K56: =RANK(J56,J$18:J$969) ->  | L56: =VLOOKUP($E56,#REF!,5,FALSE) ->  | M56: =J56+L57 ->  | N56: =RANK(M56,M$18:M$969) ->  | O56: =VLOOKUP($E56,#REF!,41,FALSE) ->  | P56: =M56+O57 ->  | Q56: =RANK(P56,P$18:P$969) ->  | R56: =VLOOKUP($E56,#REF!,3,FALSE) ->  | S56: =P56+R57 ->  | T56: =RANK(S56,S$18:S$969) ->  | U56: =VLOOKUP($E56,#REF!,41,FALSE) ->  | V56: =S56+U57 ->  | W56: =RANK(V56,V$18:V$969) ->  | X56: =VLOOKUP($E56,#REF!,3,FALSE) ->  | Y56: =MID(X56,1,1) ->  | Z56: =MID(X56,3,5) ->  | AA56: =Y56*60+Z56 ->  | AB56: =SUM(F57:X57) ->  | AC56: =RANK(AB56,AB$18:AB$969) ->  | AD56: 1 | AE56: лич | AF56: =VLOOKUP($E56,#REF!,7,FALSE) -> 
D57: =VLOOKUP($E56,#REF!,6,FALSE) ->  | F57: =INT(58.015*(11.5-F56)^1.81) ->  | I57: =INT(0.14354*(I56*100-220)^1.4) ->  | L57: =INT(51.39*(L56-1.5)^1.05) ->  | O57: =INT(0.8465*(O56*100-75)^1.42) ->  | R57: =INT(20.5173*(15.5-R56)^1.92) ->  | U57: =INT(0.2797*(U56*100-100)^1.35) ->  | X57: =INT(0.08713*(305.5-AA56)^1.85) -> 
B61: =#REF! ->  | AD61: =#REF! -> 
A62: Место | B62: Фамилия Имя | C62: Д.р. | D62: Команда, организация | E62: №№ | F62: 60 очки | G62: сумма | H62: место | I62: Длина очки | J62: сумма | K62: место | L62: Ядро очки | M62: сумма | N62: место | O62: Высота очки | P62: сумма | Q62: место | R62: 60м с/б очки | S62: сумма | T62: место | U62: Шест очки | V62: сумма | W62: место | X62: 1000м очки | AB62: Сумма | AC62: Место | AD62: Разряд | AE62: Очки | AF62: Тренер
A63: 1 | B63: =VLOOKUP($E63,#REF!,2,FALSE) ->  | C63: =VLOOKUP($E63,#REF!,3,FALSE) ->  | D63: =VLOOKUP($E63,#REF!,5,FALSE) ->  | E63: 43 | F63: 7.70 | G63: =F64 -> 650 | H63: =RANK(G63,G$63:G$70) -> 2 | I63: 6.78 | J63: =G63+I64 -> 1412 | K63: =RANK(J63,J$8:J$15) ->  | L63: 11.99 | M63: =J63+L64 -> 2018 | N63: =RANK(M63,M$8:M$15) ->  | O63: 1.78 | P63: =M63+O64 -> 2628 | Q63: =RANK(P63,P$8:P$15) ->  | R63: 8.35 | S63: =P63+R64 -> 3524 | T63: =RANK(S63,S$8:S$15) ->  | U63: 4.20 | V63: =S63+U64 -> 4197 | W63: =RANK(V63,V$8:V$15) ->  | X63: 3,13,2 | Y63: =MID(X63,1,1) -> 3 | Z63: =MID(X63,3,5) -> 13,2 | AA63: =Y63*60+Z63 -> 1900-07-11T04:48:00 | AB63: =SUM(F64:X64) -> 4738 | AC63: =RANK(AB63,AB$8:AB$15) ->  | AD63: КМС | AE63: лич | AF63: =VLOOKUP($E63,#REF!,7,FALSE) -> 
D64: =VLOOKUP($E63,#REF!,6,FALSE) ->  | F64: =INT(58.015*(11.5-F63)^1.81) -> 650 | I64: =INT(0.14354*(I63*100-220)^1.4) -> 762 | L64: =INT(51.39*(L63-1.5)^1.05) -> 606 | O64: =INT(0.8465*(O63*100-75)^1.42) -> 610 | R64: =INT(20.5173*(15.5-R63)^1.92) -> 896 | U64: =INT(0.2797*(U63*100-100)^1.35) -> 673 | X64: =INT(0.08713*(305.5-AA63)^1.85) -> 541
A65: 2 | B65: =VLOOKUP($E65,#REF!,2,FALSE) ->  | C65: =VLOOKUP($E65,#REF!,3,FALSE) ->  | D65: =VLOOKUP($E65,#REF!,5,FALSE) ->  | E65: 50 | F65: 7.88 | G65: =F66 -> 595 | H65: =RANK(G65,G$63:G$70) -> 4 | I65: 6.08 | J65: =G65+I66 -> 1199 | K65: =RANK(J65,J$8:J$15) ->  | L65: 10.62 | M65: =J65+L66 -> 1722 | N65: =RANK(M65,M$8:M$15) ->  | O65: 1.78 | P65: =M65+O66 -> 2332 | Q65: =RANK(P65,P$8:P$15) ->  | R65: 8.37 | S65: =P65+R66 -> 3223 | T65: =RANK(S65,S$8:S$15) ->  | U65: 3.60 | V65: =S65+U66 -> 3732 | W65: =RANK(V65,V$8:V$15) ->  | X65: 2,45,2 | Y65: =MID(X65,1,1) -> 2 | Z65: =MID(X65,3,5) -> 45,2 | AA65: =Y65*60+Z65 -> 1900-06-13T04:48:00 | AB65: =SUM(F66:X66) -> 4549 | AC65: =RANK(AB65,AB$8:AB$15) ->  | AD65: КМС | AE65: лич | AF65: =VLOOKUP($E65,#REF!,7,FALSE) -> 
D66: =VLOOKUP($E65,#REF!,6,FALSE) ->  | F66: =INT(58.015*(11.5-F65)^1.81) -> 595 | I66: =INT(0.14354*(I65*100-220)^1.4) -> 604 | L66: =INT(51.39*(L65-1.5)^1.05) -> 523 | O66: =INT(0.8465*(O65*100-75)^1.42) -> 610 | R66: =INT(20.5173*(15.5-R65)^1.92) -> 891 | U66: =INT(0.2797*(U65*100-100)^1.35) -> 509 | X66: =INT(0.08713*(305.5-AA65)^1.85) -> 817
A67: 3 | B67: =VLOOKUP($E67,#REF!,2,FALSE) ->  | C67: =VLOOKUP($E67,#REF!,3,FALSE) ->  | D67: =VLOOKUP($E67,#REF!,5,FALSE) ->  | E67: 59 | F67: 7.62 | G67: =F68 -> 675 | H67: =RANK(G67,G$63:G$70) -> 1 | I67: 5.94 | J67: =G67+I68 -> 1249 | K67: =RANK(J67,J$8:J$15) ->  | L67: 11.10 | M67: =J67+L68 -> 1801 | N67: =RANK(M67,M$8:M$15) ->  | O67: 1.90 | P67: =M67+O68 -> 2515 | Q67: =RANK(P67,P$8:P$15) ->  | R67: 9.06 | S67: =P67+R68 -> 3248 | T67: =RANK(S67,S$8:S$15) ->  | U67: 4.00 | V67: =S67+U68 -> 3865 | W67: =RANK(V67,V$8:V$15) ->  | X67: 2,59,9 | Y67: =MID(X67,1,1) -> 2 | Z67: =MID(X67,3,5) -> 59,9 | AA67: =Y67*60+Z67 -> 1900-06-27T21:36:00 | AB67: =SUM(F68:X68) -> 4530 | AC67: =RANK(AB67,AB$8:AB$15) ->  | AD67: 1 | AE67: лич | AF67: =VLOOKUP($E67,#REF!,7,FALSE) -> 
D68: =VLOOKUP($E67,#REF!,6,FALSE) ->  | F68: =INT(58.015*(11.5-F67)^1.81) -> 675 | I68: =INT(0.14354*(I67*100-220)^1.4) -> 574 | L68: =INT(51.39*(L67-1.5)^1.05) -> 552 | O68: =INT(0.8465*(O67*100-75)^1.42) -> 714 | R68: =INT(20.5173*(15.5-R67)^1.92) -> 733 | U68: =INT(0.2797*(U67*100-100)^1.35) -> 617 | X68: =INT(0.08713*(305.5-AA67)^1.85) -> 665
A69: 4 | B69: =VLOOKUP($E69,#REF!,2,FALSE) ->  | C69: =VLOOKUP($E69,#REF!,3,FALSE) ->  | D69: =VLOOKUP($E69,#REF!,5,FALSE) ->  | E69: 42 | F69: 7.71 | G69: =F70 -> 646 | H69: =RANK(G69,G$63:G$70) -> 3 | I69: 5.73 | J69: =G69+I70 -> 1175 | K69: =RANK(J69,J$8:J$15) ->  | L69: 10.23 | M69: =J69+L70 -> 1674 | N69: =RANK(M69,M$8:M$15) ->  | O69: 1.87 | P69: =M69+O70 -> 2361 | Q69: =RANK(P69,P$8:P$15) ->  | R69: 9.08 | S69: =P69+R70 -> 3089 | T69: =RANK(S69,S$8:S$15) ->  | U69: 3.60 | V69: =S69+U70 -> 3598 | W69: =RANK(V69,V$8:V$15) ->  | X69: 2,46,3 | Y69: =MID(X69,1,1) -> 2 | Z69: =MID(X69,3,5) -> 46,3 | AA69: =Y69*60+Z69 -> 1900-06-14T07:12:00 | AB69: =SUM(F70:X70) -> 4403 | AC69: =RANK(AB69,AB$8:AB$15) ->  | AD69: 1 | AE69: лич | AF69: =VLOOKUP($E69,#REF!,7,FALSE) -> 
D70: =VLOOKUP($E69,#REF!,6,FALSE) ->  | F70: =INT(58.015*(11.5-F69)^1.81) -> 646 | I70: =INT(0.14354*(I69*100-220)^1.4) -> 529 | L70: =INT(51.39*(L69-1.5)^1.05) -> 499 | O70: =INT(0.8465*(O69*100-75)^1.42) -> 687 | R70: =INT(20.5173*(15.5-R69)^1.92) -> 728 | U70: =INT(0.2797*(U69*100-100)^1.35) -> 509 | X70: =INT(0.08713*(305.5-AA69)^1.85) -> 805

Sheet Семиборье (1998-1999)
A1: ЦЕНТР СПОРТИВНОЙ ПОДГОТОВКИ МДМС РЕСПУБЛИКИ ТАТАРСТАН
A4: ЗИМНИЙ ЛИЧНЫЙ ЧЕМПИОНАТ И ПЕРВЕНСТВО РЕСПУБЛИКИ ТАТАРСТАН СРЕДИ ЮНИОРОВ ДО 20 ЛЕТ ПО ЛЕГКОЙ АТЛЕТИКЕ В ПОМЕЩЕНИИ
AF5: 23 ДЕКАБРЯ 2016г.
B6: МУЖЧИНЫ 1997г.р. и старше | U6: г. Казань, Футбольно-легкоатлетический манеж
A7: Место | B7: Фамилия Имя | C7: Д.р. | D7: Команда, организация | E7: №№ | F7: 60 очки | G7: сумма | H7: место | I7: Длина очки | J7: сумма | K7: место | L7: Ядро очки | M7: сумма | N7: место | O7: Высота очки | P7: сумма | Q7: место | R7: 60м с/б очки | S7: сумма | T7: место | U7: Шест очки | V7: сумма | W7: место | X7: 1000м очки | AB7: Сумма | AC7: Место | AD7: Разряд | AE7: Очки | AF7: Тренер
A8: 1 | B8: ШАРИФУЛЛИН ИЛЬНАЗ | C8: 1994 | D8: КАЗАНЬ | E8: 134 | F8: 7.54 | G8: 700 | I8: 6.28 | J8: 1348 | L8: 9.22 | M8: 1787 | O8: 1.73 | P8: 2356 | R8: 9.62 | S8: 2971 | U8: 4.20 | V8: 3644 | X8: 2,50,9 | Y8: 2 | Z8: 50,9 | AA8: 1900-06-18T21:36:00 | AB8: 4400 | AD8: 1 | AE8: лич | AF8: ФАЙЗУЛЛИНА ГП
D9: СДЮСШОР ЛА | F9: 700 | I9: 648 | L9: 439 | O9: 569 | R9: 615 | U9: 673 | X9: 756
A10: 2 | B10: БРАЙНИН СЕРГЕЙ | C10: 1997 | D10: КАЗАНЬ | E10: 2917 | F10: 7.55 | G10: 697 | H10: 1 | I10: 5.18 | J10: 1114 | K10: 1 | L10: 10.05 | M10: 1603 | N10: 1 | O10: 1.91 | P10: 2326 | Q10: 1 | R10: 9.34 | S10: 2999 | T10: 1 | U10: 3.60 | V10: 3508 | W10: 1 | X10: 3,08,2 | Y10: 3 | Z10: 08,2 | AA10: 1900-07-06T04:48:00 | AB10: 4094 | AC10: 1 | AD10: 1 | AE10: лич | AF10: ВОСТРИКОВА ИА, ЗАХАРЧУК ДГ
D11: СДЮСШОР ЛА | F11: 697 | I11: 417 | L11: 489 | O11: 723 | R11: 673 | U11: 509 | X11: 586
B13: ЮНИОРЫ 1998-1999г.р.
A14: Место | B14: Фамилия Имя | C14: Д.р. | D14: Команда, организация | E14: №№ | F14: 60 очки | G14: сумма | H14: место | I14: Длина очки | J14: сумма | K14: место | L14: Ядро очки | M14: сумма | N14: место | O14: Высота очки | P14: сумма | Q14: место | R14: 60м с/б очки | S14: сумма | T14: место | U14: Шест очки | V14: сумма | W14: место | X14: 1000м очки | AB14: Сумма | AC14: Место | AD14: Разряд | AE14: Очки | AF14: Тренер
A15: 1 | B15: ЗАРИПОВ РАИЛЬ | C15: 1999 | D15: НИЖНЕКАМСК | E15: 162 | F15: 7.62 | G15: 675 | H15: 1 | I15: 6.08 | J15: 1279 | K15: 1 | L15: 9.41 | M15: 1729 | N15: 1 | O15: 1.82 | P15: 2373 | Q15: 1 | R15: 9.04 | S15: 3110 | T15: 1 | U15: 3.20 | V15: 3516 | W15: 1 | X15: 3,00,8 | Y15: 3 | Z15: 00,8 | AA15: 1900-06-28T19:12:00 | AB15: 4172 | AC15: 1 | AD15: 1 | AE15: 22+5 | AF15: НОСОВА МЕ
D16: НЕФТЕХИМИК | F16: 675 | I16: 604 | L16: 450 | O16: 644 | R16: 737 | U16: 406 | X16: 656
A17: 2 | B17: ШАГИМАРДАНОВ БУЛАТ | C17: 1998 | D17: КАЗАНЬ | E17: 2918 | F17: 7.84 | G17: 607 | H17: 2 | I17: 5.62 | J17: 1113 | K17: 2 | L17: 9.13 | M17: 1547 | N17: 2 | O17: 1.67 | P17: 2067 | Q17: 2 | R17: 9.23 | S17: 2763 | T17: 2 | U17: 3.60 | V17: 3272 | W17: 2 | X17: 3,15,9 | Y17: 3 | Z17: 15,9 | AA17: 1900-07-13T21:36:00 | AB17: 3789 | AC17: 3 | AD17: 2 | AE17: лич | AF17: ВОСТРИКОВА ИА, ЗАХАРЧУК ДГ
D18: СДЮСШОР ЛА | F18: 607 | I18: 506 | L18: 434 | O18: 520 | R18: 696 | U18: 509 | X18: 517

Sheet Семиборье (1998-1999) РТ (hidden)
A1: РЕСПУБЛИКАНСКИЙ ЦЕНТР ФИЗИЧЕСКОЙ КУЛЬТУРЫ И ЮНОШЕСКОГО СПОРТА РТ
A2: =#REF! -> 
A4: ПЕРВЕНСТВО РЕСПУБЛИКИ ТАТАРСТАН ПО МНОГОБОРЬЯМ
AF5: =#REF! -> 
B6: =#REF! ->  | U6: =#REF! -> 
A7: Место | B7: Фамилия Имя | C7: Д.р. | D7: Команда, организация | E7: №№ | F7: 60 очки | G7: сумма | H7: место | I7: Длина очки | J7: сумма | K7: место | L7: Ядро очки | M7: сумма | N7: место | O7: Высота очки | P7: сумма | Q7: место | R7: 60м с/б очки | S7: сумма | T7: место | U7: Шест очки | V7: сумма | W7: место | X7: 1000м очки | AB7: Сумма | AC7: Место | AD7: Разряд | AE7: Очки | AF7: Тренер
A8: 1 | B8: =VLOOKUP($E8,#REF!,2,FALSE) ->  | C8: =VLOOKUP($E8,#REF!,3,FALSE) ->  | D8: =VLOOKUP($E8,#REF!,5,FALSE) ->  | E8: 59 | F8: 7.62 | G8: =F9 -> 675 | H8: =RANK(G8,G$8:G$15) -> 1 | I8: 6.08 | J8: =G8+I9 -> 1279 | K8: =RANK(J8,J$8:J$15) -> 2 | L8: 10.63 | M8: =J8+L9 -> 1803 | N8: =RANK(M8,M$8:M$15) -> 2 | O8: 1.85 | P8: =M8+O9 -> 2473 | Q8: =RANK(P8,P$8:P$15) -> 1 | R8: 8.89 | S8: =P8+R9 -> 3243 | T8: =RANK(S8,S$8:S$15) -> 1 | U8: 3.90 | V8: =S8+U9 -> 3833 | W8: =RANK(V8,V$8:V$15) -> 1 | X8: 2,54,83 | Y8: =MID(X8,1,1) -> 2 | Z8: =MID(X8,3,5) -> 54,83 | AA8: =Y8*60+Z8 -> 1900-06-22T19:55:12 | AB8: =SUM(F9:X9) -> 4549 | AC8: =RANK(AB8,AB$8:AB$15) -> 1 | AD8: 1 | AE8: лич | AF8: =VLOOKUP($E8,#REF!,7,FALSE) -> 
D9: =VLOOKUP($E8,#REF!,6,FALSE) ->  | F9: =INT(58.015*(11.5-F8)^1.81) -> 675 | I9: =INT(0.14354*(I8*100-220)^1.4) -> 604 | L9: =INT(51.39*(L8-1.5)^1.05) -> 524 | O9: =INT(0.8465*(O8*100-75)^1.42) -> 670 | R9: =INT(20.5173*(15.5-R8)^1.92) -> 770 | U9: =INT(0.2797*(U8*100-100)^1.35) -> 590 | X9: =INT(0.08713*(305.5-AA8)^1.85) -> 716
A10: 2 | B10: =VLOOKUP($E10,#REF!,2,FALSE) ->  | C10: =VLOOKUP($E10,#REF!,3,FALSE) ->  | D10: =VLOOKUP($E10,#REF!,5,FALSE) ->  | E10: 42 | F10: 7.71 | G10: =F11 -> 646 | H10: =RANK(G10,G$8:G$15) -> 3 | I10: 6.22 | J10: =G10+I11 -> 1281 | K10: =RANK(J10,J$8:J$15) -> 1 | L10: 9.90 | M10: =J10+L11 -> 1761 | N10: =RANK(M10,M$8:M$15) -> 3 | O10: 1.76 | P10: =M10+O11 -> 2354 | Q10: =RANK(P10,P$8:P$15) -> 2 | R10: 9.33 | S10: =P10+R11 -> 3029 | T10: =RANK(S10,S$8:S$15) -> 2 | U10: 3.10 | V10: =S10+U11 -> 3410 | W10: =RANK(V10,V$8:V$15) -> 2 | X10: 3,09,95 | Y10: =MID(X10,1,1) -> 3 | Z10: =MID(X10,3,5) -> 09,95 | AA10: =Y10*60+Z10 -> 1900-07-07T22:48:00 | AB10: =SUM(F11:X11) -> 3980 | AC10: =RANK(AB10,AB$8:AB$15) -> 2 | AD10: 2 | AE10: лич | AF10: =VLOOKUP($E10,#REF!,7,FALSE) -> 
D11: =VLOOKUP($E10,#REF!,6,FALSE) ->  | F11: =INT(58.015*(11.5-F10)^1.81) -> 646 | I11: =INT(0.14354*(I10*100-220)^1.4) -> 635 | L11: =INT(51.39*(L10-1.5)^1.05) -> 480 | O11: =INT(0.8465*(O10*100-75)^1.42) -> 593 | R11: =INT(20.5173*(15.5-R10)^1.92) -> 675 | U11: =INT(0.2797*(U10*100-100)^1.35) -> 381 | X11: =INT(0.08713*(305.5-AA10)^1.85) -> 570
A12: 3 | B12: =VLOOKUP($E12,#REF!,2,FALSE) ->  | C12: =VLOOKUP($E12,#REF!,3,FALSE) ->  | D12: =VLOOKUP($E12,#REF!,5,FALSE) ->  | E12: 50 | F12: 7.88 | G12: =F13 -> 595 | H12: =RANK(G12,G$8:G$15) -> 4 | I12: 5.46 | J12: =G12+I13 -> 1068 | K12: =RANK(J12,J$8:J$15) -> 4 | L12: 9.58 | M12: =J12+L13 -> 1528 | N12: =RANK(M12,M$8:M$15) -> 4 | O12: 1.61 | P12: =M12+O13 -> 2000 | Q12: =RANK(P12,P$8:P$15) -> 4 | R12: 9.60 | S12: =P12+R13 -> 2619 | T12: =RANK(S12,S$8:S$15) -> 3 | U12: 3.60 | V12: =S12+U13 -> 3128 | W12: =RANK(V12,V$8:V$15) -> 3 | X12: 3,10,44 | Y12: =MID(X12,1,1) -> 3 | Z12: =MID(X12,3,5) -> 10,44 | AA12: =Y12*60+Z12 -> 1900-07-08T10:33:36 | AB12: =SUM(F13:X13) -> 3694 | AC12: =RANK(AB12,AB$8:AB$15) -> 3 | AD12: 2 | AE12: лич | AF12: =VLOOKUP($E12,#REF!,7,FALSE) -> 
D13: =VLOOKUP($E12,#REF!,6,FALSE) ->  | F13: =INT(58.015*(11.5-F12)^1.81) -> 595 | I13: =INT(0.14354*(I12*100-220)^1.4) -> 473 | L13: =INT(51.39*(L12-1.5)^1.05) -> 460 | O13: =INT(0.8465*(O12*100-75)^1.42) -> 472 | R13: =INT(20.5173*(15.5-R12)^1.92) -> 619 | U13: =INT(0.2797*(U12*100-100)^1.35) -> 509 | X13: =INT(0.08713*(305.5-AA12)^1.85) -> 566
A14: 4 | B14: =VLOOKUP($E14,#REF!,2,FALSE) ->  | C14: =VLOOKUP($E14,#REF!,3,FALSE) ->  | D14: =VLOOKUP($E14,#REF!,5,FALSE) ->  | E14: 43 | F14: 7.70 | G14: =F15 -> 650 | H14: =RANK(G14,G$8:G$15) -> 2 | I14: 5.60 | J14: =G14+I15 -> 1152 | K14: =RANK(J14,J$8:J$15) -> 3 | L14: 13.75 | M14: =J14+L15 -> 1865 | N14: =RANK(M14,M$8:M$15) -> 1 | O14: 1.58 | P14: =M14+O15 -> 2314 | Q14: =RANK(P14,P$8:P$15) -> 3 | R14: сошел | S14: =P14+R15 -> 2314 | T14: =RANK(S14,S$8:S$15) -> 4 | U14: 0.00 | V14: =S14+U15 -> 2314 | W14: =RANK(V14,V$8:V$15) -> 4 | X14: сошел | Y14: =MID(X14,1,1) -> с | Z14: =MID(X14,3,5) -> шел | AA14: =Y14*60+Z14 ->  | AB14: =SUM(F15:X15) -> 2314 | AC14: =RANK(AB14,AB$8:AB$15) -> 4 | AD14: 2Ю | AE14: лич | AF14: =VLOOKUP($E14,#REF!,7,FALSE) -> 
D15: =VLOOKUP($E14,#REF!,6,FALSE) ->  | F15: =INT(58.015*(11.5-F14)^1.81) -> 650 | I15: =INT(0.14354*(I14*100-220)^1.4) -> 502 | L15: =INT(51.39*(L14-1.5)^1.05) -> 713 | O15: =INT(0.8465*(O14*100-75)^1.42) -> 449 | R15: 0 | U15: 0 | X15: 0
B17: =#REF! -> 
A18: Место | B18: Фамилия Имя | C18: Д.р. | D18: Команда, организация | E18: №№ | F18: 60 очки | G18: сумма | H18: место | I18: Длина очки | J18: сумма | K18: место | L18: Ядро очки | M18: сумма | N18: место | O18: Высота очки | P18: сумма | Q18: место | R18: 60м с/б очки | S18: сумма | T18: место | U18: Шест очки | V18: сумма | W18: место | X18: 1000м очки | AB18: Сумма | AC18: Место | AD18: Разряд | AE18: Очки | AF18: Тренер
A19: 1 | B19: =VLOOKUP($E19,#REF!,2,FALSE) ->  | C19: =VLOOKUP($E19,#REF!,3,FALSE) ->  | D19: =VLOOKUP($E19,#REF!,5,FALSE) ->  | E19: 52 | F19: 7.27 | G19: =F20 -> 789 | H19: =RANK(G19,G$19:G$30) -> 1 | I19: 6.27 | J19: =G19+I20 -> 1435 | K19: =RANK(J19,J$19:J$30) -> 1 | L19: 11.15 | M19: =J19+L20 -> 1990 | N19: =RANK(M19,M$19:M$30) -> 1 | O19: 1.91 | P19: =M19+O20 -> 2713 | Q19: =RANK(P19,P$19:P$30) -> 1 | R19: 8.48 | S19: =P19+R20 -> 3578 | T19: =RANK(S19,S$19:S$30) -> 1 | U19: 4.10 | V19: =S19+U20 -> 4223 | W19: =RANK(V19,V$19:V$30) -> 1 | X19: 2,46,11 | Y19: =MID(X19,1,1) -> 2 | Z19: =MID(X19,3,5) -> 46,11 | AA19: =Y19*60+Z19 -> 1900-06-14T02:38:24 | AB19: =SUM(F20:X20) -> 5030 | AC19: =RANK(AB19,AB$8:AB$923) ->  | AD19: КМС | AE19: 22+5 | AF19: =VLOOKUP($E19,#REF!,7,FALSE) -> 
D20: =VLOOKUP($E19,#REF!,6,FALSE) ->  | F20: =INT(58.015*(11.5-F19)^1.81) -> 789 | I20: =INT(0.14354*(I19*100-220)^1.4) -> 646 | L20: =INT(51.39*(L19-1.5)^1.05) -> 555 | O20: =INT(0.8465*(O19*100-75)^1.42) -> 723 | R20: =INT(20.5173*(15.5-R19)^1.92) -> 865 | U20: =INT(0.2797*(U19*100-100)^1.35) -> 645 | X20: =INT(0.08713*(305.5-AA19)^1.85) -> 807
A21: 2 | B21: =VLOOKUP($E21,#REF!,2,FALSE) ->  | C21: =VLOOKUP($E21,#REF!,3,FALSE) ->  | D21: =VLOOKUP($E21,#REF!,5,FALSE) ->  | E21: 40 | F21: 7.66 | G21: =F22 -> 662 | H21: =RANK(G21,G$19:G$30) -> 3 | I21: 6.44 | J21: =G21+I22 -> 1346 | K21: =RANK(J21,J$19:J$30) -> 2 | L21: 10.47 | M21: =J21+L22 -> 1860 | N21: =RANK(M21,M$19:M$30) -> 3 | O21: 1.85 | P21: =M21+O22 -> 2530 | Q21: =RANK(P21,P$19:P$30) -> 3 | R21: 9.51 | S21: =P21+R22 -> 3167 | T21: =RANK(S21,S$19:S$30) -> 2 | U21: 3.60 | V21: =S21+U22 -> 3676 | W21: =RANK(V21,V$19:V$30) -> 2 | X21: 2,59,34 | Y21: =MID(X21,1,1) -> 2 | Z21: =MID(X21,3,5) -> 59,34 | AA21: =Y21*60+Z21 -> 1900-06-27T08:09:36 | AB21: =SUM(F22:X22) -> 4347 | AC21: =RANK(AB21,AB$8:AB$923) ->  | AD21: 1 | AE21: лич | AF21: =VLOOKUP($E21,#REF!,7,FALSE) -> 
D22: =VLOOKUP($E21,#REF!,6,FALSE) ->  | F22: =INT(58.015*(11.5-F21)^1.81) -> 662 | I22: =INT(0.14354*(I21*100-220)^1.4) -> 684 | L22: =INT(51.39*(L21-1.5)^1.05) -> 514 | O22: =INT(0.8465*(O21*100-75)^1.42) -> 670 | R22: =INT(20.5173*(15.5-R21)^1.92) -> 637 | U22: =INT(0.2797*(U21*100-100)^1.35) -> 509 | X22: =INT(0.08713*(305.5-AA21)^1.85) -> 671
A23: 3 | B23: =VLOOKUP($E23,#REF!,2,FALSE) ->  | C23: =VLOOKUP($E23,#REF!,3,FALSE) ->  | D23: =VLOOKUP($E23,#REF!,5,FALSE) ->  | E23: 51 | F23: 7.71 | G23: =F24 -> 646 | H23: =RANK(G23,G$19:G$30) -> 4 | I23: 5.73 | J23: =G23+I24 -> 1175 | K23: =RANK(J23,J$19:J$30) -> 5 | L23: 9.23 | M23: =J23+L24 -> 1615 | N23: =RANK(M23,M$19:M$30) -> 5 | O23: 1.85 | P23: =M23+O24 -> 2285 | Q23: =RANK(P23,P$19:P$30) -> 4 | R23: 9.58 | S23: =P23+R24 -> 2908 | T23: =RANK(S23,S$19:S$30) -> 3 | U23: 3.80 | V23: =S23+U24 -> 3470 | W23: =RANK(V23,V$19:V$30) -> 3 | X23: 2,55,91 | Y23: =MID(X23,1,1) -> 2 | Z23: =MID(X23,3,5) -> 55,91 | AA23: =Y23*60+Z23 -> 1900-06-23T21:50:24 | AB23: =SUM(F24:X24) -> 4175 | AC23: =RANK(AB23,AB$8:AB$923) ->  | AD23: 1 | AE23: 22+5 | AF23: =VLOOKUP($E23,#REF!,7,FALSE) -> 
D24: =VLOOKUP($E23,#REF!,6,FALSE) ->  | F24: =INT(58.015*(11.5-F23)^1.81) -> 646 | I24: =INT(0.14354*(I23*100-220)^1.4) -> 529 | L24: =INT(51.39*(L23-1.5)^1.05) -> 440 | O24: =INT(0.8465*(O23*100-75)^1.42) -> 670 | R24: =INT(20.5173*(15.5-R23)^1.92) -> 623 | U24: =INT(0.2797*(U23*100-100)^1.35) -> 562 | X24: =INT(0.08713*(305.5-AA23)^1.85) -> 705
A25: 4 | B25: =VLOOKUP($E25,#REF!,2,FALSE) ->  | C25: =VLOOKUP($E25,#REF!,3,FALSE) ->  | D25: =VLOOKUP($E25,#REF!,5,FALSE) ->  | E25: 57 | F25: 7.77 | G25: =F26 -> 628 | H25: =RANK(G25,G$19:G$30) -> 5 | I25: 5.96 | J25: =G25+I26 -> 1206 | K25: =RANK(J25,J$19:J$30) -> 4 | L25: 9.25 | M25: =J25+L26 -> 1647 | N25: =RANK(M25,M$19:M$30) -> 4 | O25: 1.79 | P25: =M25+O26 -> 2266 | Q25: =RANK(P25,P$19:P$30) -> 5 | R25: 9.65 | S25: =P25+R26 -> 2875 | T25: =RANK(S25,S$19:S$30) -> 4 | U25: 3.70 | V25: =S25+U26 -> 3410 | W25: =RANK(V25,V$19:V$30) -> 4 | X25: 3,01,50 | Y25: =MID(X25,1,1) -> 3 | Z25: =MID(X25,3,5) -> 01,50 | AA25: =Y25*60+Z25 -> 1900-06-29T12:00:00 | AB25: =SUM(F26:X26) -> 4060 | AC25: =RANK(AB25,AB$8:AB$923) ->  | AD25: 1 | AE25: 22+5 | AF25: =VLOOKUP($E25,#REF!,7,FALSE) -> 
D26: =VLOOKUP($E25,#REF!,6,FALSE) ->  | F26: =INT(58.015*(11.5-F25)^1.81) -> 628 | I26: =INT(0.14354*(I25*100-220)^1.4) -> 578 | L26: =INT(51.39*(L25-1.5)^1.05) -> 441 | O26: =INT(0.8465*(O25*100-75)^1.42) -> 619 | R26: =INT(20.5173*(15.5-R25)^1.92) -> 609 | U26: =INT(0.2797*(U25*100-100)^1.35) -> 535 | X26: =INT(0.08713*(305.5-AA25)^1.85) -> 650
B27: =VLOOKUP($E27,#REF!,2,FALSE) ->  | C27: =VLOOKUP($E27,#REF!,3,FALSE) ->  | D27: =VLOOKUP($E27,#REF!,5,FALSE) ->  | E27: 64 | F27: 7.39 | G27: =F28 -> 749 | H27: =RANK(G27,G$19:G$30) -> 2 | I27: 5.80 | J27: =G27+I28 -> 1293 | K27: =RANK(J27,J$19:J$30) -> 3 | L27: 12.51 | M27: =J27+L28 -> 1930 | N27: =RANK(M27,M$19:M$30) -> 2 | O27: 1.91 | P27: =M27+O28 -> 2653 | Q27: =RANK(P27,P$19:P$30) -> 2 | R27: сошел | S27: =P27+R28 -> 2653 | T27: =RANK(S27,S$19:S$30) -> 5 | U27: НЯ | V27: =S27+U28 -> 2653 | W27: =RANK(V27,V$19:V$30) -> 5 | X27: НЯ | Y27: =MID(X27,1,1) -> Н | Z27: =MID(X27,3,5) ->  | AA27: =Y27*60+Z27 ->  | AB27: =SUM(F28:X28) -> 2653 | AC27: =RANK(AB27,AB$8:AB$923) ->  | AE27: 22+5 | AF27: =VLOOKUP($E27,#REF!,7,FALSE) -> 
D28: =VLOOKUP($E27,#REF!,6,FALSE) ->  | F28: =INT(58.015*(11.5-F27)^1.81) -> 749 | I28: =INT(0.14354*(I27*100-220)^1.4) -> 544 | L28: =INT(51.39*(L27-1.5)^1.05) -> 637 | O28: =INT(0.8465*(O27*100-75)^1.42) -> 723 | R28: 0 | U28: 0 | X28: 0
B29: =VLOOKUP($E29,#REF!,2,FALSE) ->  | C29: =VLOOKUP($E29,#REF!,3,FALSE) ->  | D29: =VLOOKUP($E29,#REF!,5,FALSE) ->  | E29: 2 | F29: 8.11 | G29: =F30 -> 528 | H29: =RANK(G29,G$19:G$30) -> 6 | I29: 0.00 | J29: =G29+I30 -> 528 | K29: =RANK(J29,J$19:J$30) -> 6 | L29: 12.53 | M29: =J29+L30 -> 1167 | N29: =RANK(M29,M$19:M$30) -> 6 | O29: 1.85 | P29: =M29+O30 -> 1837 | Q29: =RANK(P29,P$19:P$30) -> 6 | R29: НЯ | S29: =P29+R30 -> 1837 | T29: =RANK(S29,S$19:S$30) -> 6 | U29: НЯ | V29: =S29+U30 -> 1837 | W29: =RANK(V29,V$19:V$30) -> 6 | Y29: =MID(X29,1,1) ->  | Z29: =MID(X29,3,5) ->  | AA29: =Y29*60+Z29 ->  | AB29: =SUM(F30:X30) ->  | AC29: =RANK(AB29,AB$8:AB$923) ->  | AE29: 25+15 | AF29: =VLOOKUP($E29,#REF!,7,FALSE) -> 
D30: =VLOOKUP($E29,#REF!,6,FALSE) ->  | F30: =INT(58.015*(11.5-F29)^1.81) -> 528 | I30: 0 | L30: =INT(51.39*(L29-1.5)^1.05) -> 639 | O30: =INT(0.8465*(O29*100-75)^1.42) -> 670 | R30: 0 | U30: 0 | X30: =INT(0.08713*(305.5-AA29)^1.85) -> 
A31: ВК | B31: =VLOOKUP($E31,#REF!,2,FALSE) ->  | C31: =VLOOKUP($E31,#REF!,3,FALSE) ->  | D31: =VLOOKUP($E31,#REF!,5,FALSE) ->  | E31: 13 | F31: 7.47 | G31: =F32 -> 723 | I31: 6.25 | J31: =G31+I32 -> 1364 | L31: 8.59 | M31: =J31+L32 -> 1765 | O31: 1.85 | P31: =M31+O32 -> 2435 | R31: 10.06 | S31: =P31+R32 -> 2965 | U31: 4.20 | V31: =S31+U32 -> 3638 | X31: 2,55,01 | Y31: =MID(X31,1,1) -> 2 | Z31: =MID(X31,3,5) -> 55,01 | AA31: =Y31*60+Z31 -> 1900-06-23T00:14:24 | AB31: =SUM(F32:X32) -> 4352 | AC31: =RANK(AB31,AB$8:AB$923) ->  | AD31: 1 | AE31: 22+5 | AF31: =VLOOKUP($E31,#REF!,7,FALSE) -> 
D32: =VLOOKUP($E31,#REF!,6,FALSE) ->  | F32: =INT(58.015*(11.5-F31)^1.81) -> 723 | I32: =INT(0.14354*(I31*100-220)^1.4) -> 641 | L32: =INT(51.39*(L31-1.5)^1.05) -> 401 | O32: =INT(0.8465*(O31*100-75)^1.42) -> 670 | R32: =INT(20.5173*(15.5-R31)^1.92) -> 530 | U32: =INT(0.2797*(U31*100-100)^1.35) -> 673 | X32: =INT(0.08713*(305.5-AA31)^1.85) -> 714

Sheet Семиборье (1995-1997) (hidden)
A1: =#REF! -> 
A2: =#REF! -> 
A4: =#REF! -> 
B6: =#REF! ->  | AD6: =#REF! -> 
A7: Место | B7: Фамилия Имя | C7: Д.р. | D7: Команда, организация | E7: №№ | F7: 60 очки | G7: сумма | H7: место | I7: Длина очки | J7: сумма | K7: место | L7: Ядро очки | M7: сумма | N7: место | O7: Высота очки | P7: сумма | Q7: место | R7: 60м с/б очки | S7: сумма | T7: место | U7: Шест очки | V7: сумма | W7: место | X7: 1000м очки | AB7: Сумма | AC7: Место | AD7: Разряд | AE7: Очки | AF7: Тренер
A8: 1 | B8: =VLOOKUP($E8,#REF!,2,FALSE) ->  | C8: =VLOOKUP($E8,#REF!,3,FALSE) ->  | D8: =VLOOKUP($E8,#REF!,5,FALSE) ->  | E8: 2 | F8: 8.11 | G8: =F9 -> 528 | H8: =RANK(G8,G$8:G$19) -> 6 | J8: =G8+I9 ->  | K8: =RANK(J8,J$8:J$10) ->  | M8: =J8+L9 ->  | N8: =RANK(M8,M$8:M$10) ->  | P8: =M8+O9 ->  | Q8: =RANK(P8,P$8:P$10) ->  | S8: =P8+R9 ->  | T8: =RANK(S8,S$8:S$10) ->  | V8: =S8+U9 ->  | W8: =RANK(V8,V$8:V$10) ->  | Y8: =MID(X8,1,1) ->  | Z8: =MID(X8,3,5) ->  | AA8: =Y8*60+Z8 ->  | AB8: =SUM(F9:X9) ->  | AC8: =RANK(AB8,AB$8:AB$923) ->  | AE8: 25+15 | AF8: =VLOOKUP($E8,#REF!,7,FALSE) -> 
D9: =VLOOKUP($E8,#REF!,6,FALSE) ->  | F9: =INT(58.015*(11.5-F8)^1.81) -> 528 | I9: =INT(0.14354*(I8*100-220)^1.4) ->  | L9: =INT(51.39*(L8-1.5)^1.05) ->  | O9: =INT(0.8465*(O8*100-75)^1.42) ->  | R9: =INT(20.5173*(15.5-R8)^1.92) ->  | U9: =INT(0.2797*(U8*100-100)^1.35) ->  | X9: =INT(0.08713*(305.5-AA8)^1.85) -> 
A10: 2 | B10: =VLOOKUP($E10,#REF!,2,FALSE) ->  | C10: =VLOOKUP($E10,#REF!,3,FALSE) ->  | D10: =VLOOKUP($E10,#REF!,5,FALSE) ->  | E10: 40 | F10: 7.66 | G10: =F11 -> 662 | H10: =RANK(G10,G$8:G$19) -> 3 | J10: =G10+I11 ->  | K10: =RANK(J10,J$8:J$10) ->  | M10: =J10+L11 ->  | N10: =RANK(M10,M$8:M$10) ->  | P10: =M10+O11 ->  | Q10: =RANK(P10,P$8:P$10) ->  | S10: =P10+R11 ->  | T10: =RANK(S10,S$8:S$10) ->  | V10: =S10+U11 ->  | W10: =RANK(V10,V$8:V$10) ->  | Y10: =MID(X10,1,1) ->  | Z10: =MID(X10,3,5) ->  | AA10: =Y10*60+Z10 ->  | AB10: =SUM(F11:X11) ->  | AC10: =RANK(AB10,AB$8:AB$923) ->  | AE10: лич | AF10: =VLOOKUP($E10,#REF!,7,FALSE) -> 
D11: =VLOOKUP($E10,#REF!,6,FALSE) ->  | F11: =INT(58.015*(11.5-F10)^1.81) -> 662 | I11: =INT(0.14354*(I10*100-220)^1.4) ->  | L11: =INT(51.39*(L10-1.5)^1.05) ->  | O11: =INT(0.8465*(O10*100-75)^1.42) ->  | R11: =INT(20.5173*(15.5-R10)^1.92) ->  | X11: =INT(0.08713*(305.5-AA10)^1.85) -> 
A12: 3 | B12: =VLOOKUP($E12,#REF!,2,FALSE) ->  | C12: =VLOOKUP($E12,#REF!,3,FALSE) ->  | D12: =VLOOKUP($E12,#REF!,5,FALSE) ->  | E12: 51 | F12: 7.71 | G12: =F13 -> 646 | H12: =RANK(G12,G$8:G$19) -> 4 | J12: =G12+I13 ->  | M12: =J12+L13 ->  | P12: =M12+O13 ->  | S12: =P12+R13 ->  | V12: =S12+U13 ->  | Y12: =MID(X12,1,1) ->  | Z12: =MID(X12,3,5) ->  | AA12: =Y12*60+Z12 ->  | AB12: =SUM(F13:X13) ->  | AC12: =RANK(AB12,AB$8:AB$923) ->  | AE12: 22+5 | AF12: =VLOOKUP($E12,#REF!,7,FALSE) -> 
D13: =VLOOKUP($E12,#REF!,6,FALSE) ->  | F13: =INT(58.015*(11.5-F12)^1.81) -> 646 | I13: =INT(0.14354*(I12*100-220)^1.4) ->  | L13: =INT(51.39*(L12-1.5)^1.05) ->  | O13: =INT(0.8465*(O12*100-75)^1.42) ->  | R13: =INT(20.5173*(15.5-R12)^1.92) ->  | U13: =INT(0.2797*(U12*100-100)^1.35) ->  | X13: =INT(0.08713*(305.5-AA12)^1.85) -> 
A14: 4 | B14: =VLOOKUP($E14,#REF!,2,FALSE) ->  | C14: =VLOOKUP($E14,#REF!,3,FALSE) ->  | D14: =VLOOKUP($E14,#REF!,5,FALSE) ->  | E14: 52 | F14: 7.27 | G14: =F15 -> 789 | H14: =RANK(G14,G$8:G$19) -> 1 | J14: =G14+I15 ->  | M14: =J14+L15 ->  | P14: =M14+O15 ->  | S14: =P14+R15 ->  | V14: =S14+U15 ->  | Y14: =MID(X14,1,1) ->  | Z14: =MID(X14,3,5) ->  | AA14: =Y14*60+Z14 ->  | AB14: =SUM(F15:X15) ->  | AC14: =RANK(AB14,AB$8:AB$923) ->  | AE14: 22+5 | AF14: =VLOOKUP($E14,#REF!,7,FALSE) -> 
D15: =VLOOKUP($E14,#REF!,6,FALSE) ->  | F15: 789 | X15: =INT(0.08713*(305.5-AA14)^1.85) -> 
A16: 5 | B16: =VLOOKUP($E16,#REF!,2,FALSE) ->  | C16: =VLOOKUP($E16,#REF!,3,FALSE) ->  | D16: =VLOOKUP($E16,#REF!,5,FALSE) ->  | E16: 57 | F16: 7.77 | G16: =F17 -> 628 | H16: =RANK(G16,G$8:G$19) -> 5 | J16: =G16+I17 ->  | M16: =J16+L17 ->  | P16: =M16+O17 ->  | S16: =P16+R17 ->  | V16: =S16+U17 ->  | Y16: =MID(X16,1,1) ->  | Z16: =MID(X16,3,5) ->  | AA16: =Y16*60+Z16 ->  | AB16: =SUM(F17:X17) ->  | AC16: =RANK(AB16,AB$8:AB$923) ->  | AE16: 22+5 | AF16: =VLOOKUP($E16,#REF!,7,FALSE) -> 
D17: =VLOOKUP($E16,#REF!,6,FALSE) ->  | F17: 628 | X17: =INT(0.08713*(305.5-AA16)^1.85) -> 
A18: 6 | B18: =VLOOKUP($E18,#REF!,2,FALSE) ->  | C18: =VLOOKUP($E18,#REF!,3,FALSE) ->  | D18: =VLOOKUP($E18,#REF!,5,FALSE) ->  | E18: 64 | F18: 7.39 | G18: =F19 -> 749 | H18: =RANK(G18,G$8:G$19) -> 2 | J18: =G18+I19 ->  | M18: =J18+L19 ->  | P18: =M18+O19 ->  | S18: =P18+R19 ->  | V18: =S18+U19 ->  | Y18: =MID(X18,1,1) ->  | Z18: =MID(X18,3,5) ->  | AA18: =Y18*60+Z18 ->  | AB18: =SUM(F19:X19) ->  | AC18: =RANK(AB18,AB$8:AB$923) ->  | AE18: 22+5 | AF18: =VLOOKUP($E18,#REF!,7,FALSE) -> 
D19: =VLOOKUP($E18,#REF!,6,FALSE) ->  | F19: 749 | X19: =INT(0.08713*(305.5-AA18)^1.85) -> 
A20: ВК | B20: =VLOOKUP($E20,#REF!,2,FALSE) ->  | C20: =VLOOKUP($E20,#REF!,3,FALSE) ->  | D20: =VLOOKUP($E20,#REF!,5,FALSE) ->  | E20: 13 | F20: 7.47 | G20: =F21 -> 723 | J20: =G20+I21 ->  | M20: =J20+L21 ->  | P20: =M20+O21 ->  | S20: =P20+R21 ->  | V20: =S20+U21 ->  | Y20: =MID(X20,1,1) ->  | Z20: =MID(X20,3,5) ->  | AA20: =Y20*60+Z20 ->  | AB20: =SUM(F21:X21) ->  | AC20: =RANK(AB20,AB$8:AB$923) ->  | AE20: 22+5 | AF20: =VLOOKUP($E20,#REF!,7,FALSE) -> 
D21: =VLOOKUP($E20,#REF!,6,FALSE) ->  | F21: 723 | X21: =INT(0.08713*(305.5-AA20)^1.85) -> 
